fUST/lending_fUST_20240618
["ID","MTS","AMOUNT","RATE_DAILY","PERIOD"]
[329829861,1718722243148,-345.353364,0.00019919,2]
[329829862,1718722243158,-345.353364,0.00019919,2]
[329829863,1718722243169,-151.0,0.00019919,2]
[329829864,1718722243179,-151.0,0.00019919,2]
[329829865,1718722243189,-180.834964,0.00019919,2]
[329829866,1718722243199,-151.0,0.00019919,2]
[329829867,1718722243208,-151.0,0.00019919,2]
[329829868,1718722243218,-151.0,0.00019919,2]
[329829869,1718722243228,-151.0,0.00019919,2]
[329829870,1718722243239,-151.0,0.00019919,2]
[329829871,1718722243249,-481.58990943,0.00019919,2]
[329829872,1718722243258,-1082.48,0.00019919,2]
[329829873,1718722243268,-500.98958676,0.00019919,2]
[329829874,1718722243277,-1348.256316,0.00019919,2]
[329829875,1718722243287,-1348.256316,0.00019919,2]
[329829876,1718722243296,-384.30874346,0.00019919,2]
[329829925,1718722247703,-500.0,0.00019917,2]
[329829926,1718722247714,-963.94757254,0.00019919,2]
[329829928,1718722247723,-1348.256316,0.00019919,2]
[329829929,1718722247732,-1348.256316,0.00019919,2]
[329829930,1718722247742,-1348.256316,0.00019919,2]
[329829931,1718722247751,-1348.256316,0.00019919,2]
[329829932,1718722247761,-1348.256316,0.00019919,2]
[329829933,1718722247770,-1348.256316,0.00019919,2]
[329829934,1718722247779,-1348.256316,0.00019919,2]
[329829935,1718722247788,-151.0,0.00019919,2]
[329829936,1718722247798,-151.0,0.00019919,2]
[329829937,1718722247808,-151.0,0.00019919,2]
[329829938,1718722247822,-151.0,0.00019919,2]
[329829939,1718722247831,-151.0,0.00019919,2]
[329829940,1718722247840,-151.0,0.00019919,2]
[329829941,1718722247849,-151.0,0.00019919,2]
[329829942,1718722247858,-151.0,0.00019919,2]
[329829943,1718722247965,-151.0,0.00019919,2]
[329829944,1718722247976,-151.0,0.00019919,2]
[329829945,1718722247985,-151.0,0.00019919,2]
[329829946,1718722247995,-151.0,0.00019919,2]
[329829947,1718722248004,-151.0,0.00019919,2]
[329829948,1718722248014,-151.0,0.00019919,2]
[329829949,1718722248023,-151.0,0.00019919,2]
[329829950,1718722248032,-298.14077914,0.0001992,2]
[329829951,1718722248042,-324.76054633,0.0001992,2]
[329829952,1718722248050,-569.13777399,0.0001992,2]
[329829953,1718722248059,-155.5952081,0.0001992,2]
[329829954,1718722248073,-151.0,0.0001992,2]
[329829955,1718722248083,-151.0,0.0001992,2]
[329829956,1718722248092,-172.507132,0.0001992,2]
[329829957,1718722248102,-172.507132,0.0001992,2]
[329829958,1718722248111,-500.0,0.0001992,2]
[329829959,1718722248121,-270.49061676,0.00019988,2]
[329829960,1718722248131,-151.0,0.00019988,2]
[329829961,1718722248140,-345.353364,0.00019988,2]
[329829962,1718722248150,-345.353364,0.00019988,2]
[329829963,1718722248160,-624.43,0.00019988,2]
[329829964,1718722248171,-617.84651404,0.00019988,2]
[329829965,1718722248181,-151.0,0.00019988,2]
[329829966,1718722248191,-1348.256316,0.00019988,2]
[329829967,1718722248200,-1348.256316,0.00019988,2]
[329829968,1718722248210,-151.0,0.00019989,2]
[329829969,1718722248220,-151.0,0.00019989,2]
[329829970,1718722248229,-172.507132,0.00019989,2]
[329829971,1718722248238,-172.507132,0.00019989,2]
[329829972,1718722248248,-345.353364,0.00019989,2]
[329829973,1718722248257,-345.353364,0.00019989,2]
[329829974,1718722248266,-151.0,0.00019989,2]
[329829975,1718722248276,-1082.48,0.00019989,2]
[329829976,1718722248285,-1082.48,0.00019989,2]
[329829977,1718722248295,-1082.48,0.00019989,2]
[329829978,1718722248305,-1082.48,0.00019989,2]
[329829979,1718722248315,-624.89621025,0.00019989,2]
[329829980,1718722248332,-457.58378975,0.00019989,2]
[329829981,1718722248342,-151.0,0.00019989,2]
[329829982,1718722248352,-796.71980553,0.0001999,2]
[329829989,1718722424195,265.87919368,9.999e-05,2]
[329829991,1718722811305,674.80913402,9.999e-05,2]
[329829993,1718723129254,2383.52480636,9.999e-05,2]
[329829994,1718723129279,953.46040142,9.999e-05,2]
[329829995,1718723142175,-399.75433253,0.00017825,2]
[329829996,1718723142198,-387.2855904,0.00017925,2]
[329829997,1718723142218,-1084.0102135,0.00017954,2]
[329829998,1718723142238,-306.74829995,0.00017998,2]
[329830000,1718723228289,-680.20191855,0.00017998,2]
[329830001,1718723228310,-265.87919368,0.00018897,2]
[329830002,1718723228331,-839.61953579,0.00018897,2]
[329830003,1718723228352,-644.84902424,0.00018897,2]
[329830004,1718723228387,-300.0,0.00018898,2]
[329830005,1718723228407,-300.0,0.00018898,2]
[329830006,1718723228428,-3604.70540801,0.00018899,2]
[329830007,1718723249107,-11966.03137912,0.00018898,2]
[329830009,1718723349478,154.76784823,9.999e-05,2]
[329830014,1718723404063,3295.0,0.00026,60]
[329830066,1718723439121,-154.76784823,0.00018896,2]
[329830068,1718723439132,-261.8013467,0.00018898,2]
[329830070,1718723439146,-344.72155403,0.00018898,2]
[329830072,1718723439156,-190.41727371,0.00018899,2]
[329830074,1718723439167,-153.35072148,0.000189,2]
[329830076,1718723439177,-371.24,0.00018987,3]
[329830078,1718723439187,-300.0,0.00018993,2]
[329830080,1718723439198,-300.0,0.00018993,2]
[329830082,1718723439207,-156.17936081,0.00018994,2]
[329830084,1718723439217,-2496.33568664,0.00018994,2]
[329830102,1718723439437,-28128.3197926,0.00018994,2]
[329830103,1718723439447,-1247.07,0.00018995,2]
[329830104,1718723439456,-500.0,0.00018995,2]
[329830105,1718723439465,-500.0,0.00018995,2]
[329830106,1718723439475,-500.0,0.00018995,2]
[329830107,1718723439484,-500.0,0.00018995,2]
[329830108,1718723439494,-500.0,0.00018995,2]
[329830109,1718723439503,-500.0,0.00018995,2]
[329830110,1718723439517,-27.51020741,0.00018995,2]
[329830235,1718723443012,-6596.97832572,0.00018796,2]
[329830237,1718723443024,-9151.64355735,0.00018796,2]
[329830238,1718723443034,-472.48979259,0.00018995,2]
[329830239,1718723443043,-500.0,0.00018995,2]
[329830240,1718723443052,-500.0,0.00018995,2]
[329830241,1718723443061,-2455.33,0.00018995,2]
[329830242,1718723443071,-500.0,0.00018995,2]
[329830243,1718723443081,-500.0,0.00018995,2]
[329830244,1718723443091,-500.0,0.00018995,2]
[329830245,1718723443100,-500.0,0.00018995,2]
[329830246,1718723443109,-500.0,0.00018995,2]
[329830247,1718723443120,-2455.33,0.00018996,2]
[329830248,1718723443129,-520.31886397,0.00018997,2]
[329830249,1718723443139,-500.0,0.00018997,2]
[329830250,1718723443148,-233.50982135,0.00018997,2]
[329830251,1718723443158,-500.0,0.00018997,2]
[329830252,1718723443167,-508.73609276,0.00018997,2]
[329830253,1718723443176,-500.0,0.00018997,2]
[329830254,1718723443185,-500.0,0.00018997,2]
[329830255,1718723443195,-500.0,0.00018997,2]
[329830256,1718723443204,-500.0,0.00018997,2]
[329830257,1718723443214,-500.0,0.00018997,2]
[329830258,1718723443224,-500.0,0.00018997,2]
[329830259,1718723443234,-512.28071716,0.00018997,2]
[329830260,1718723443244,-500.0,0.00018997,2]
[329830261,1718723443254,-500.0,0.00018997,2]
[329830262,1718723443271,-186.93455754,0.00018997,2]
[329830263,1718723443285,-313.06544246,0.00018997,2]
[329830264,1718723443299,-2607.82,0.00018997,2]
[329830265,1718723443309,-282.87561693,0.00018997,2]
[329830266,1718723443318,-500.0,0.00018997,2]
[329830267,1718723443328,-500.0,0.00018997,2]
[329830268,1718723443338,-500.0,0.00018997,2]
[329830269,1718723443350,-500.0,0.00018997,2]
[329830270,1718723443362,-500.0,0.00018997,2]
[329830271,1718723443373,-220.50584687,0.00018997,2]
[329830272,1718723443384,-506.17722419,0.00018997,2]
[329830273,1718723443395,-500.0,0.00018997,2]
[329830274,1718723443404,-500.0,0.00018997,2]
[329830275,1718723443414,-500.0,0.00018997,2]
[329830276,1718723443424,-500.0,0.00018997,2]
[329830277,1718723443434,-500.0,0.00018997,2]
[329830278,1718723443443,-546.66,0.00018997,2]
[329830279,1718723443453,-500.0,0.00018997,2]
[329830280,1718723443462,-500.0,0.00018997,2]
[329830281,1718723443472,-516.35427236,0.00018997,2]
[329830282,1718723443483,-365.34464332,0.00018997,2]
[329830283,1718723443492,-500.0,0.00018997,2]
[329830284,1718723443502,-500.0,0.00018997,2]
[329830285,1718723443519,-500.0,0.00018997,2]
[329830286,1718723443529,-524.27997589,0.00018997,2]
[329830287,1718723443538,-500.0,0.00018997,2]
[329830288,1718723443547,-504.03904831,0.00018997,2]
[329830289,1718723443556,-500.0,0.00018997,2]
[329830290,1718723443566,-190.0202906,0.00018997,2]
[329830291,1718723443575,-500.0,0.00018997,2]
[329830292,1718723443584,-500.0,0.00018997,2]
[329830293,1718723443594,-500.0,0.00018997,2]
[329830294,1718723443603,-500.0,0.00018997,2]
[329830295,1718723443612,-500.0,0.00018997,2]
[329830296,1718723443621,-500.0,0.00018997,2]
[329830297,1718723443631,-500.0,0.00018997,2]
[329830303,1718723443640,-500.0,0.00018997,2]
[329830307,1718723443650,-500.0,0.00018997,2]
[329830309,1718723443660,-500.0,0.00018997,2]
[329830312,1718723443670,-500.0,0.00018997,2]
[329830316,1718723443679,-500.0,0.00018997,2]
[329830320,1718723443688,-500.0,0.00018997,2]
[329830325,1718723443697,-500.0,0.00018997,2]
[329830329,1718723443707,-500.0,0.00018997,2]
[329830333,1718723443716,-500.0,0.00018997,2]
[329830336,1718723443725,-500.0,0.00018997,2]
[329830339,1718723443735,-500.0,0.00018997,2]
[329830342,1718723443744,-500.0,0.00018997,2]
[329830344,1718723443754,-500.0,0.00018997,2]
[329830347,1718723443768,-500.0,0.00018997,2]
[329830349,1718723443779,-500.0,0.00018997,2]
[329830351,1718723443789,-500.0,0.00018997,2]
[329830353,1718723443799,-502.91981873,0.00018997,2]
[329830355,1718723443808,-500.0,0.00018997,2]
[329830357,1718723443818,-500.0,0.00018997,2]
[329830359,1718723443828,-500.0,0.00018997,2]
[329830361,1718723443837,-500.0,0.00018997,2]
[329830363,1718723443846,-500.0,0.00018997,2]
[329830365,1718723443855,-500.0,0.00018997,2]
[329830367,1718723443865,-500.0,0.00018997,2]
[329830369,1718723443874,-500.0,0.00018997,2]
[329830371,1718723443887,-500.0,0.00018997,2]
[329830373,1718723443897,-500.0,0.00018997,2]
[329830375,1718723443907,-500.0,0.00018997,2]
[329830377,1718723443916,-500.0,0.00018997,2]
[329830379,1718723443927,-500.0,0.00018997,2]
[329830381,1718723443937,-514.05063526,0.00018997,2]
[329830383,1718723443946,-500.0,0.00018997,2]
[329830385,1718723443956,-500.0,0.00018997,2]
[329830387,1718723443967,-500.0,0.00018997,2]
[329830389,1718723443976,-500.0,0.00018997,2]
[329830391,1718723443985,-504.29694182,0.00018997,2]
[329830393,1718723443995,-506.55197469,0.00018997,2]
[329830394,1718723444008,-500.0,0.00018997,2]
[329830396,1718723444017,-500.0,0.00018997,2]
[329830397,1718723444026,-507.86080618,0.00018997,2]
[329830398,1718723444036,-500.0,0.00018997,2]
[329830399,1718723444044,-500.0,0.00018997,2]
[329830400,1718723444053,-500.0,0.00018997,2]
[329830401,1718723444063,-286.15250192,0.00018997,2]
[329830402,1718723444072,-500.0,0.00018997,2]
[329830403,1718723444083,-500.0,0.00018997,2]
[329830404,1718723444093,-500.0,0.00018997,2]
[329830405,1718723444103,-500.0,0.00018997,2]
[329830406,1718723444113,-500.0,0.00018997,2]
[329830407,1718723444123,-500.0,0.00018997,2]
[329830408,1718723444132,-500.0,0.00018997,2]
[329830409,1718723444142,-500.0,0.00018997,2]
[329830410,1718723444152,-500.0,0.00018997,2]
[329830411,1718723444161,-500.0,0.00018997,2]
[329830412,1718723444171,-500.0,0.00018997,2]
[329830413,1718723444183,-500.0,0.00018997,2]
[329830414,1718723444193,-546.04903319,0.00018997,2]
[329830415,1718723444203,-500.0,0.00018997,2]
[329830416,1718723444212,-2455.33,0.00018998,2]
[329830417,1718723444222,-500.0,0.00018998,2]
[329830418,1718723444231,-500.0,0.00018998,2]
[329830419,1718723444241,-500.0,0.00018999,2]
[329830420,1718723444250,-500.11867,0.00018999,2]
[329830421,1718723444263,-496.92849677,0.00018999,2]
[329830422,1718723444274,-507.35335198,0.00018999,2]
[329830423,1718723444284,-560.04340868,0.00018999,2]
[329830424,1718723444293,-27.80471421,0.00018999,2]
[329830425,1718723444307,-472.19528579,0.00018999,2]
[329830426,1718723444317,-500.0,0.00018999,2]
[329830427,1718723444326,-274.90391975,0.00018999,2]
[329830428,1718723444336,-500.0,0.00018999,2]
[329830429,1718723444346,-500.0,0.00018999,2]
[329830430,1718723444356,-500.0,0.00018999,2]
[329830431,1718723444366,-500.0078982,0.00018999,2]
[329830432,1718723444375,-526.29441157,0.00018999,2]
[329830433,1718723444385,-502.72866284,0.00018999,2]
[329830434,1718723444394,-500.0,0.00018999,2]
[329830435,1718723444403,-500.0,0.00018999,2]
[329830436,1718723444413,-508.21393543,0.00018999,2]
[329830437,1718723444422,-596.96420282,0.00018999,2]
[329830438,1718723444431,-521.9870467,0.00018999,2]
[329830439,1718723444440,-519.16741731,0.00018999,2]
[329830440,1718723444450,-629.46810859,0.00018999,2]
[329830441,1718723444460,-500.0,0.00018999,2]
[329830442,1718723444469,-510.14308289,0.00018999,2]
[329830443,1718723444478,-504.86467101,0.00018999,2]
[329830444,1718723444488,-507.73575482,0.00018999,2]
[329830445,1718723444498,-514.49097192,0.00018999,2]
[329830446,1718723444510,-505.58056084,0.00018999,2]
[329830447,1718723444520,-437.7783306,0.00018999,2]
[329830448,1718723444530,-500.0,0.00018999,2]
[329830449,1718723444540,-500.0,0.00018999,2]
[329830450,1718723444550,-507.10807402,0.00018999,2]
[329830451,1718723444560,-500.0,0.00018999,2]
[329830452,1718723444569,-500.0,0.00018999,2]
[329830453,1718723444579,-500.0,0.00018999,2]
[329830454,1718723444588,-500.0,0.00018999,2]
[329830455,1718723444598,-500.21104545,0.00018999,2]
[329830456,1718723444607,-500.0,0.00018999,2]
[329830459,1718723444617,-500.0,0.00018999,2]
[329830461,1718723444626,-500.0,0.00018999,2]
[329830463,1718723444636,-500.0,0.00018999,2]
[329830465,1718723444646,-500.0,0.00018999,2]
[329830467,1718723444655,-502.25752549,0.00018999,2]
[329830469,1718723444665,-505.3740656,0.00018999,2]
[329830471,1718723444675,-500.0,0.00018999,2]
[329830472,1718723444685,-500.0,0.00018999,2]
[329830473,1718723444694,-500.0,0.00018999,2]
[329830474,1718723444703,-502.68845868,0.00018999,2]
[329830475,1718723444712,-500.0,0.00018999,2]
[329830476,1718723444722,-151.0,0.00018999,2]
[329830477,1718723444731,-464.388255,0.00018999,2]
[329830478,1718723444740,-151.0,0.00018999,2]
[329830479,1718723444750,-500.0,0.00018999,2]
[329830480,1718723444763,-500.0,0.00018999,2]
[329830481,1718723444773,-464.388255,0.00018999,2]
[329830482,1718723444784,-504.73678399,0.00018999,2]
[329830483,1718723444793,-500.0,0.00018999,2]
[329830484,1718723444803,-507.06099125,0.00018999,2]
[329830485,1718723444813,-500.0,0.00018999,2]
[329830486,1718723444822,-500.0,0.00018999,2]
[329830487,1718723444831,-570.22,0.00018999,2]
[329830489,1718723444840,-505.2954295,0.00018999,2]
[329830491,1718723444849,-151.0,0.00018999,2]
[329830493,1718723444859,-500.0,0.00018999,2]
[329830494,1718723444868,-500.0,0.00018999,2]
[329830496,1718723444877,-500.0,0.00018999,2]
[329830498,1718723444893,-506.73541076,0.00018999,2]
[329830500,1718723444903,-500.0,0.00018999,2]
[329830502,1718723444912,-151.0,0.00018999,2]
[329830507,1718723445025,-500.0,0.00018999,2]
[329830508,1718723445035,-510.10398228,0.00018999,2]
[329830509,1718723445045,-512.74357506,0.00018999,2]
[329830510,1718723445056,-508.51313538,0.00018999,2]
[329830511,1718723445066,-500.0,0.00018999,2]
[329830512,1718723445076,-513.5181348,0.00018999,2]
[329830513,1718723445087,-509.17920568,0.00018999,2]
[329830514,1718723445098,-500.0,0.00018999,2]
[329830515,1718723445108,-503.62610073,0.00018999,2]
[329830516,1718723445119,-500.0,0.00018999,2]
[329830517,1718723445128,-502.3731162,0.00018999,2]
[329830518,1718723445137,-500.0,0.00018999,2]
[329830519,1718723445147,-500.0,0.00018999,2]
[329830520,1718723445157,-503.25376686,0.00018999,2]
[329830521,1718723445167,-151.0,0.00018999,2]
[329830522,1718723445176,-509.02079936,0.00018999,2]
[329830523,1718723445186,-513.87955028,0.00018999,2]
[329830524,1718723445196,-535.79591694,0.00018999,2]
[329830525,1718723445206,-1124.074094,0.00018999,2]
[329830526,1718723445215,-1124.074094,0.00018999,2]
[329830527,1718723445225,-1124.074094,0.00018999,2]
[329830528,1718723445234,-1124.074094,0.00018999,2]
[329830529,1718723445243,-1124.074094,0.00018999,2]
[329830530,1718723445253,-1124.074094,0.00018999,2]
[329830531,1718723445269,-316.64703226,0.00018999,2]
[329830532,1718723445278,-502.8554633,0.00018999,2]
[329830533,1718723445287,-500.0,0.00018999,2]
[329830534,1718723445296,-151.0,0.00018999,2]
[329830535,1718723445304,-151.0,0.00018999,2]
[329830536,1718723445313,-151.0,0.00018999,2]
[329830537,1718723445322,-151.0,0.00018999,2]
[329830538,1718723445331,-151.0,0.00018999,2]
[329830539,1718723445340,-151.0,0.00018999,2]
[329830540,1718723445349,-151.0,0.00018999,2]
[329830541,1718723445358,-151.953215,0.00018999,2]
[329830542,1718723445368,-500.0,0.00018999,2]
[329830543,1718723445377,-500.0,0.00018999,2]
[329830544,1718723445387,-588.30242799,0.00018999,2]
[329830545,1718723445397,-500.0,0.00018999,2]
[329830546,1718723445406,-500.0,0.00018999,2]
[329830547,1718723445416,-500.0,0.00018999,2]
[329830548,1718723445426,-513.48660467,0.00018999,2]
[329830549,1718723445435,-438.557257,0.00018999,2]
[329830550,1718723445445,-438.557257,0.00018999,2]
[329830551,1718723445454,-500.0,0.00018999,2]
[329830552,1718723445464,-500.0,0.00018999,2]
[329830553,1718723445473,-438.557257,0.00018999,2]
[329830554,1718723445482,-438.557257,0.00018999,2]
[329830555,1718723445492,-506.50399436,0.00018999,2]
[329830556,1718723445501,-264.46652,0.00018999,2]
[329830557,1718723445514,-500.0,0.00018999,2]
[329830558,1718723445523,-250.0,0.00018999,2]
[329830559,1718723445532,-151.0,0.00018999,2]
[329830560,1718723445541,-151.0,0.00018999,2]
[329830561,1718723445550,-500.0,0.00018999,2]
[329830562,1718723445559,-151.0,0.00018999,2]
[329830563,1718723445569,-500.0,0.00018999,2]
[329830564,1718723445578,-151.0,0.00018999,2]
[329830565,1718723445588,-500.0,0.00018999,2]
[329830566,1718723445597,-242.4170783,0.00018999,2]
[329830567,1718723445607,-151.623046,0.00018999,2]
[329830568,1718723445616,-151.0,0.00018999,2]
[329830569,1718723445626,-151.0,0.00018999,2]
[329830570,1718723445635,-500.0,0.00018999,2]
[329830571,1718723445644,-151.0,0.00018999,2]
[329830572,1718723445653,-151.0,0.00018999,2]
[329830573,1718723445663,-500.0,0.00018999,2]
[329830574,1718723445672,-500.0,0.00018999,2]
[329830575,1718723445682,-1183.121109,0.00018999,2]
[329830576,1718723445691,-1183.121109,0.00018999,2]
[329830577,1718723445700,-500.0,0.00018999,2]
[329830578,1718723445710,-500.0,0.00018999,2]
[329830579,1718723445719,-1183.121109,0.00018999,2]
[329830580,1718723445728,-1183.121109,0.00018999,2]
[329830581,1718723445738,-500.0,0.00018999,2]
[329830582,1718723445747,-151.0,0.00018999,2]
[329830583,1718723445759,-151.0,0.00018999,2]
[329830584,1718723445769,-151.0,0.00018999,2]
[329830585,1718723445779,-450.41169296,0.00018999,2]
[329830586,1718723445788,-151.0,0.00018999,2]
[329830587,1718723445797,-151.0,0.00018999,2]
[329830588,1718723445806,-151.0,0.00018999,2]
[329830589,1718723445815,-500.0,0.00018999,2]
[329830590,1718723445824,-151.0,0.00018999,2]
[329830591,1718723445834,-500.0,0.00018999,2]
[329830592,1718723445843,-151.0,0.00018999,2]
[329830593,1718723445852,-170.622398,0.00018999,2]
[329830594,1718723445862,-763.01,0.00018999,2]
[329830595,1718723445871,-500.0,0.00018999,2]
[329830596,1718723445880,-509.88017521,0.00018999,2]
[329830597,1718723445891,-500.0,0.00018999,2]
[329830598,1718723445901,-151.0,0.00018999,2]
[329830599,1718723445911,-500.0,0.00018999,2]
[329830600,1718723445922,-151.0,0.00018999,2]
[329830601,1718723445931,-151.0,0.00018999,2]
[329830602,1718723445942,-500.0,0.00018999,2]
[329830603,1718723445952,-500.0,0.00018999,2]
[329830604,1718723445961,-502.27682486,0.00018999,2]
[329830605,1718723445970,-500.0,0.00018999,2]
[329830606,1718723445979,-151.0,0.00018999,2]
[329830607,1718723445989,-151.0,0.00018999,2]
[329830608,1718723445999,-151.0,0.00018999,2]
[329830609,1718723446011,-500.0,0.00018999,2]
[329830610,1718723446021,-151.0,0.00018999,2]
[329830611,1718723446031,-500.0,0.00018999,2]
[329830612,1718723446040,-502.01019909,0.00018999,2]
[329830613,1718723446049,-973.838259,0.00018999,2]
[329830614,1718723446058,-973.838259,0.00018999,2]
[329830615,1718723446068,-973.838259,0.00018999,2]
[329830616,1718723446077,-973.838259,0.00018999,2]
[329830617,1718723446086,-973.838259,0.00018999,2]
[329830618,1718723446095,-973.838259,0.00018999,2]
[329830619,1718723446106,-500.0,0.00018999,2]
[329830620,1718723446115,-500.00000001,0.00018999,2]
[329830621,1718723446124,-151.0,0.00018999,2]
[329830622,1718723446133,-500.0,0.00018999,2]
[329830623,1718723446143,-151.0,0.00018999,2]
[329830624,1718723446152,-151.0,0.00018999,2]
[329830625,1718723446161,-151.0,0.00018999,2]
[329830626,1718723446170,-151.0,0.00018999,2]
[329830627,1718723446179,-151.0,0.00018999,2]
[329830628,1718723446188,-849.241905,0.00018999,2]
[329830629,1718723446197,-849.241905,0.00018999,2]
[329830630,1718723446206,-849.241905,0.00018999,2]
[329830631,1718723446215,-849.241905,0.00018999,2]
[329830632,1718723446224,-849.241905,0.00018999,2]
[329830633,1718723446233,-849.241905,0.00018999,2]
[329830635,1718723446243,-1000.0,0.00018999,2]
[329830637,1718723446252,-1000.0,0.00018999,2]
[329830638,1718723446265,-1000.0,0.00018999,2]
[329830639,1718723446274,-1000.0,0.00018999,2]
[329830640,1718723446283,-1000.0,0.00018999,2]
[329830641,1718723446292,-1000.0,0.00018999,2]
[329830642,1718723446302,-1000.0,0.00018999,2]
[329830643,1718723446312,-1000.0,0.00018999,2]
[329830644,1718723446321,-1000.0,0.00018999,2]
[329830645,1718723446330,-1000.0,0.00018999,2]
[329830646,1718723446340,-1000.0,0.00018999,2]
[329830647,1718723446349,-1000.0,0.00018999,2]
[329830648,1718723446358,-1000.0,0.00018999,2]
[329830649,1718723446367,-1000.0,0.00018999,2]
[329830650,1718723446377,-500.0,0.00018999,2]
[329830651,1718723446386,-1000.0,0.00018999,2]
[329830652,1718723446395,-1000.0,0.00018999,2]
[329830653,1718723446405,-1000.0,0.00018999,2]
[329830654,1718723446414,-1000.0,0.00018999,2]
[329830655,1718723446423,-500.150993,0.00018999,2]
[329830656,1718723446432,-1000.0,0.00019,19]
[329830657,1718723446441,-454.011743,0.00019096,2]
[329830658,1718723446451,-644.84902422,0.00019123,2]
[329830659,1718723446460,-217.077371,0.00019147,2]
[329830660,1718723446470,-217.077371,0.00019147,2]
[329830661,1718723446479,-151.0,0.00019147,2]
[329830662,1718723446488,-153.363532,0.00019147,2]
[329830663,1718723446497,-151.0,0.00019147,2]
[329830664,1718723446507,-438.557257,0.00019147,2]
[329830665,1718723446521,-438.557257,0.00019147,2]
[329830666,1718723446531,-151.0,0.00019147,2]
[329830667,1718723446540,-162.183283,0.00019147,2]
[329830668,1718723446549,-151.0,0.00019147,2]
[329830669,1718723446559,-1183.121109,0.00019147,2]
[329830670,1718723446568,-1183.121109,0.00019147,2]
[329830671,1718723446577,-151.0,0.00019147,2]
[329830672,1718723446587,-1247.07,0.00019269,2]
[329830673,1718723446596,-252.86,0.00019269,2]
[329830674,1718723446605,-500.0,0.00019269,2]
[329830675,1718723446614,-500.0,0.00019269,2]
[329830676,1718723446623,-151.0,0.00019269,2]
[329830677,1718723446633,-849.241905,0.00019269,2]
[329830678,1718723446643,-500.0,0.00019269,2]
[329830679,1718723446652,-849.241905,0.00019269,2]
[329830680,1718723446661,-3197.10170848,0.00019271,15]
[329830681,1718723446670,-175.85732107,0.00019271,2]
[329830682,1718723446679,-2607.82,0.00019271,2]
[329830683,1718723446688,-500.0,0.00019271,2]
[329830684,1718723446697,-500.0,0.00019271,2]
[329830685,1718723446706,-500.0,0.00019271,2]
[329830686,1718723446715,-500.0,0.00019271,2]
[329830687,1718723446725,-500.0,0.00019271,2]
[329830688,1718723446734,-151.0,0.00019271,2]
[329830689,1718723446743,-346.65,0.00019271,2]
[329830690,1718723446753,-973.838259,0.00019271,2]
[329830691,1718723446764,-500.0,0.00019271,2]
[329830692,1718723446773,-973.838259,0.00019271,2]
[329830693,1718723446782,-500.0,0.00019271,2]
[329830694,1718723446791,-500.0,0.00019271,2]
[329830695,1718723446800,-333.10733361,0.00019271,2]
[329830696,1718723446809,-500.0,0.00019271,2]
[329830697,1718723446818,-190.8,0.00019271,2]
[329830698,1718723446827,-500.0,0.00019271,2]
[329830699,1718723446836,-500.0,0.00019271,2]
[329830700,1718723446848,-500.0,0.00019271,2]
[329830701,1718723446863,-500.0,0.00019271,2]
[329830702,1718723446872,-2455.33,0.00019272,2]
[329830703,1718723446881,-151.0,0.00019273,2]
[329830705,1718723446896,-217.077371,0.00019273,2]
[329830708,1718723446905,-217.077371,0.00019273,2]
[329830711,1718723446914,-151.0,0.00019273,2]